Cogmind - Beta 14 @@@ ROGUE MODE // 2024.08.13 @ 01:21:46 Player: gigi283 Result: Destroyed by L-41 Fighter with Axe Performance ------------- Evolutions (4) 2000 Regions Visited (10) 2000 Robots Destroyed (119) 595 Value Destroyed (4144) 4144 Prototype IDs (27) 540 Alien Tech Used (0) 0 Bonus (523) 523 TOTAL SCORE: 9802 Bonus ------- High Alert Combat Kills 306 Follower Combat Kills 42 Aligned with FarCom 300 Friendly Fire -125 Cogmind --------- Core Integrity 0/850 Matter 15/300 Energy 100/100 System Corruption 41% Temperature Cool (0) Movement Core (1450) Ox28 Location -6/Lower Caves Parts ------- > --- POWER (2) -------- (None) > --- PROPULSION (4) --- (None) > --- UTILITY (7) ------ Huge Storage Unit Advanced Targeting Computer Launcher Guidance Computer Core Analyzer Weapon Cycler > --- WEAPON (2) ------- Mini Assault Cannon > --- INVENTORY (25) --- Energy Well (350) Large Matter Pod (0) Advanced Visual Processing Unit Advanced Terrain Scan Processor Target Analyzer Core Analyzer Advanced ECM Suite Insulated Plating PSU Rigger Proton Cannon Gauss Rifle Heavy Flak Cannon Antimatter Cannon Missile Launcher Heavy Flail Peak State ------------ > --- POWER ------------ Improved Deuterium Engine Micro Nuclear Core > --- PROPULSION ------- Armored Huge Wheel Armored Huge Wheel > --- UTILITY ---------- Improved Cooling System Huge Storage Unit Advanced Sensor Array Core Analyzer Armor Integrity Analyzer Transmission Jammer Hardened Light Armor Plating > --- WEAPON ----------- Advanced Assault Cannon Gauss Cannon > --- INVENTORY -------- Improved Deuterium Engine Micro Nuclear Core Carbon-fiber Leg Carbon-fiber Leg Carbon-fiber Leg Armored Leg Advanced Heat Sink Advanced Visual Processing Unit Advanced Terrain Scan Processor Advanced Targeting Computer Launcher Guidance Computer Improved Target Analyzer Core Analyzer Weapon Cycler Advanced ECM Suite Trap Reconfigurator PSU Rigger Improved EM Pulse Cannon Proton Cannon Gauss Rifle Mini Assault Cannon Shock Bomb Launcher Missile Launcher Missile Launcher Heavy Flail [Rating: 66] Favorites ----------- Power Light Nuclear Core Engine Ion Engine Power Core Light Nuclear Core Propulsion Improved Aluminum Leg Treads Medium Treads Leg Improved Aluminum Leg Wheel Armored Huge Wheel Utility Core Analyzer Device Improved Cooling System Storage Large Storage Unit Processor Core Analyzer Protection Hardened Light Armor Plating Weapon Gauss Rifle Energy Gun Heavy Particle Gun Energy Cannon Heavy Particle Cannon Ballistic Gun Gauss Rifle Ballistic Cannon Gauss Cannon Launcher Missile Launcher Special Weapon Mining Laser Impact Weapon Heavy Flail Build | -11 -10 -10 -10 -9 -8 -7 -6 -6 -6 -6 ------- Run | Yrd Mat Min Exi Min Mat Fac Fac Was Fac Low Slots Evolved 8 | . . . . . 4 2 2 . . . Power 1 | . . . . . . . 1 . . . Propulsion 2 | . . . . . 1 1 . . . . Utility 5 | . . . . . 3 1 1 . . . Weapon . | . . . . . . . . . . . Parts Attached 177 | 5 10 8 . 4 81 31 10 3 25 . Power 18 | . 2 1 . . 9 1 3 . 2 . Engine 12 | . 2 . . . 7 . 2 . 1 . Core 6 | . . 1 . . 2 1 1 . 1 . Reactor . | . . . . . . . . . . . Propulsion 31 | 2 2 2 . . 15 5 . . 5 . Treads 8 | 2 . . . . 3 3 . . . . Leg 21 | . 2 2 . . 12 . . . 5 . Wheel 2 | . . . . . . 2 . . . . Hover . | . . . . . . . . . . . Flight . | . . . . . . . . . . . Utility 64 | 1 2 2 . 2 28 15 3 . 11 . Device 43 | . 1 2 . 2 21 12 2 . 3 . Storage 5 | 1 1 . . . 1 1 . . 1 . Processor 5 | . . . . . 1 . 1 . 3 . Hackware . | . . . . . . . . . . . Protection 11 | . . . . . 5 2 . . 4 . Artifact . | . . . . . . . . . . . Weapon 64 | 2 4 3 . 2 29 10 4 3 7 . Energy Gun 4 | . 2 . . . 2 . . . . . Energy Cannon 7 | . . 1 . . 4 1 . . 1 . Ballistic Gun 22 | 2 2 2 . 1 11 4 . . . . Ballistic Cannon 11 | . . . . . 1 2 3 . 5 . Launcher 7 | . . . . . 4 1 . 2 . . Special Weapon 7 | . . . . 1 6 . . . . . Impact Weapon 6 | . . . . . 1 2 1 1 1 . Slashing Weapon . | . . . . . . . . . . . Piercing Weapon . | . . . . . . . . . . . Special Melee Weapon . | . . . . . . . . . . . Unidentified Prototypes 4 | . 1 . . . 1 1 . . 1 . Parts Lost 38 | . 1 . . . 14 5 1 4 10 3 Power 6 | . . . . . 3 . . . 2 1 Propulsion 12 | . . . . . 5 3 . 1 3 . Utility 11 | . 1 . . . 3 . . 3 2 2 Weapon 9 | . . . . . 3 2 1 . 3 . Highest Loss Streak 9 | . 1 . . . 3 4 1 3 9 3 To Critical Strikes 2 | . . . . . 1 1 . . . . Average Slot Usage (%) 92 | . 91 96 100 100 96 93 86 72 71 78 Engine 5 | . 11 8 . . 6 2 4 6 5 6 Core 3 | . . 5 14 14 1 4 7 2 . . Treads 7 | . 21 . . . 7 19 . . . . Leg 14 | . 6 28 28 28 18 . . . 16 12 Wheel 1 | . . . . . . 4 13 12 . . Device 17 | . 8 10 14 14 20 22 20 14 7 12 Storage 9 | . 14 14 14 14 9 7 6 6 6 6 Processor 6 | . . . . . 6 7 12 12 15 20 Protection 4 | . . . . . 7 7 6 6 4 5 Energy Gun 3 | . 3 8 . . 5 3 . . . . Energy Cannon 3 | . . 4 14 14 3 1 1 . . . Ballistic Gun 8 | . 24 15 14 13 7 6 . . . . Ballistic Cannon 2 | . . . . . . 1 11 . 6 12 Peak Build Rating 66 | 5 13 19 20 21 50 61 66 65 56 56 Average Rating 38 | 4 7 15 18 20 40 54 64 56 49 53 On Entrance 30 | . 5 11 18 20 20 48 56 66 32 56 Naked Turns . | . . . . . . . . . . . Heaviest Build 120 | 8 31 33 33 35 107 107 120 117 107 107 Greatest Support 112 | 40 40 30 30 30 84 112 56 56 61 32 Greatest Overweight (x) 14 | . 1 1 1 1 14 3 2 3 3 6 Average Overweight (x) 1 | . . . 1 1 . 1 1 1 2 3 Largest Inventory Capacity 25 | 8 15 15 15 15 25 25 25 25 25 25 Average Capacity 19 | 7 13 15 15 15 17 25 25 25 25 25 Most Carried 25 | 3 15 15 15 15 24 25 25 25 24 16 Average Carried 16 | 2 8 13 13 14 15 23 23 24 17 15 Final Capacity 25 | 8 15 15 15 15 25 25 25 25 25 25 Final Carried 25 | 3 12 13 15 15 24 25 25 24 16 15 Class Distribution -------------------- 53% | Mutant 45% | Scavenger-Mutant Dominant Class ---------------- Mutant | -10/Materials Mutant | -10/Mines Mutant | -10/Exiles Mutant | -9/Mines Scavenger-Mutant | -8/Materials Scavenger-Mutant | -7/Factory Scavenger-Mutant | -6/Factory Mutant | -6/Waste Mutant | -6/Factory Mutant | -6/Lower Caves Resources | -11 -10 -10 -10 -9 -8 -7 -6 -6 -6 -6 ----------- Run | Yrd Mat Min Exi Min Mat Fac Fac Was Fac Low Matter Collected 3249 | 226 311 119 . . 1391 656 182 . 364 . Remotely . | . . . . . . . . . . . Salvage Created 4621 | . 393 123 . . 2177 1067 493 . 368 . Parts 253 | . 29 11 . . 114 63 22 . 14 . Haulers Intercepted 3 | . . . . . 2 . . . 1 . Recyclers Shooed 2 | . 2 . . . . . . . . . Parts Field Recycled . | . . . . . . . . . . . Retrieved Matter . | . . . . . . . . . . . Parts Self-Destructed . | . . . . . . . . . . . Prevented . | . . . . . . . . . . . Kills | -11 -10 -10 -10 -9 -8 -7 -6 -6 -6 -6 ------- Run | Yrd Mat Min Exi Min Mat Fac Fac Was Fac Low Combat Hostiles Destroyed 89 | . 10 5 . . 41 18 10 . 5 . Melee 1 | . . . . . . . . . 1 . Guns 50 | . 10 5 . . 22 13 . . . . Cannons 29 | . . . . . 12 5 10 . 2 . AOE 7 | . . . . . 7 . . . . . Classes Destroyed 16 | . 4 . . . 10 2 . . . . Worker 9 | . . . . . 5 3 . . 1 . Builder 5 | . 2 . . . 3 . . . . . Tunneler 2 | . . . . . 1 . . . 1 . Hauler 3 | . . . . . 2 . . . 1 . Recycler 6 | . . . . . 3 2 1 . . . Operator 1 | . . . . . . 1 . . . . Watcher 3 | . 1 . . . 2 . . . . . Swarmer 20 | . 3 3 . . 8 2 4 . . . Grunt 33 | . 7 2 . . 13 6 4 . 1 . Brawler 2 | . . . . . 2 . . . . . Duelist 1 | . . . . . 1 . . . . . Sentry 10 | . . . . . 6 2 . . 2 . Specialist 11 | . . . . . 8 2 . . 1 . Hunter 4 | . . . . . 2 2 . . . . Programmer 7 | . . . . . . 4 2 . 1 . Heavy 1 | . . . . . 1 . . . . . Thug 1 | . . . . . 1 . . . . . Best Kill Streak 6 | . 3 3 . . 6 5 5 . 3 . Combat Bots Only 4 | . 3 3 . . 4 4 4 . 3 . Max Kills in Single Turn 3 | . 1 1 . . 2 3 1 . 1 . Gunslinging 1 | . . . . . . 1 . . . . Exploded 2 | . . . . . 2 . . . . . Melee 1 | . . . . . . . . . 1 . Uniques/NPCs Destroyed . | . . . . . . . . . . . Combat | -11 -10 -10 -10 -9 -8 -7 -6 -6 -6 -6 -------- Run | Yrd Mat Min Exi Min Mat Fac Fac Was Fac Low Hostile Shots Fired 777 | . 46 35 . . 213 196 62 3 184 38 Missed 215 | . 8 10 . . 50 57 15 . 68 7 Damage Taken 9181 | . 388 356 . . 2898 1867 893 593 1421 765 Core 1555 | . 92 79 . . 392 141 143 125 314 269 Absorbed by Shields . | . . . . . . . . . . . Core Remaining (%) 59 | 100 . . . 31 28 79 . . . . Volleys Fired 377 | . 53 21 . 6 160 76 34 . 27 . Largest 2 | . 2 2 . 1 2 2 2 . 2 . Hottest 138 | . 76 76 . 100 138 103 123 . 96 . Shots Fired 664 | . 106 37 . 6 276 142 63 . 34 . Gun 426 | . 106 37 . . 163 120 . . . . Cannon 196 | . . . . . 78 21 63 . 34 . Launcher 11 | . . . . . 10 1 . . . . Special 31 | . . . . 6 25 . . . . . Kinetic 383 | . 101 25 . . 99 82 55 . 21 . Thermal 253 | . 5 12 . 6 163 59 8 . . . Explosive 10 | . . . . . 10 . . . . . Electromagnetic 18 | . . . . . 4 1 . . 13 . Robot Hit Streak 13 | . 7 4 . . 8 11 11 . 13 . Robot Miss Streak 6 | . 6 3 . . 6 4 2 . 4 . Penetration Max 1 | . . . . . 1 1 . . . . Secondary Targets 5 | . . 2 . . 1 2 . . . . Max Gunslinging Chain 1 | . . 1 . . 1 1 . . . . Shots Hit Robots 382 | . 58 19 . . 143 92 33 . 37 . Core Hits 186 | . 25 9 . . 84 43 17 . 8 . Critical Kills . | . . . . . . . . . . . Critical Parts Destroyed 6 | . . . . . 3 3 . . . . Critical Strikes 16 | . 1 . . . 5 6 2 . 2 . Burn 6 | . 1 . . . 2 3 . . . . Destroy 6 | . . . . . 3 3 . . . . Blast 3 | . . . . . . . 2 . 1 . Corrupt 1 | . . . . . . . . . 1 . Melee Attacks 49 | . . . . . 1 4 3 21 20 . Impact 49 | . . . . . 1 4 3 21 20 . Slashing . | . . . . . . . . . . . Piercing . | . . . . . . . . . . . Sneak Attacks 7 | . . . . . . 1 . . 6 . Combat Hostiles 3 | . . . . . . 1 . . 2 . Follow-up Attacks . | . . . . . . . . . . . Damage Inflicted 9491 | . 664 195 . . 4094 2234 837 . 1446 21 Guns 4485 | . 664 195 . . 1954 1672 . . . . Cannons 3180 | . . . . . 1244 367 837 . 732 . Explosions 971 | . . . . . 896 75 . . . . Melee 834 | . . . . . . 120 . . 714 . Ramming 21 | . . . . . . . . . . 21 Kinetic 4506 | . 608 123 . . 1299 1225 737 . 514 . Thermal 2951 | . 56 72 . . 1909 814 100 . . . Explosive 842 | . . . . . 842 . . . . . Electromagnetic 337 | . . . . . 44 75 . . 218 . Impact 834 | . . . . . . 120 . . 714 . Slashing . | . . . . . . . . . . . Piercing . | . . . . . . . . . . . Highest Corruption 41 | . . . . . 1 1 2 38 41 41 Average Corruption 8 | . . . . . 1 1 1 16 38 41 Corruption Purged . | . . . . . . . . . . . Corruption Blocked . | . . . . . . . . . . . Effects 105 | . . . . . 19 7 4 10 50 15 Message Errors 25 | . . . . . . 2 . 1 15 7 Matter Fused 20 | . . . . . 5 . 2 3 8 2 Heat Flow Errors 17 | . . . . . 3 . . 2 10 2 Energy Discharges 13 | . . . . . 3 2 1 1 4 2 Data Loss (minor) 13 | . . . . . 5 3 . 1 3 1 Data Loss (major) 4 | . . . . . . . 1 1 2 . Misfires 4 | . . . . . 3 . . . 1 . Alerts 4 | . . . . . . . . 1 2 1 Misdirections 3 | . . . . . . . . . 3 . Weapon Failures 2 | . . . . . . . . . 2 . Overload Shots . | . . . . . . . . . . . Overflow Damage 167 | . . . . . 42 10 31 . 84 . Projectiles 99 | . . . . . 42 . 31 . 26 . Explosions . | . . . . . . . . . . . Melee 68 | . . . . . . 10 . . 58 . Knockbacks 9 | . . . . . . 1 6 . 2 . Impact 1 | . . . . . . 1 . . . . Kinetic 8 | . . . . . . . 6 . 2 . Secondary . | . . . . . . . . . . . Self-Inflicted Damage . | . . . . . . . . . . . Shots . | . . . . . . . . . . . Rammed 1 | . . . . . . . . . . 1 Targets Rammed 3 | . . . . . . . . . . 3 Kicked 2 | . . . . . . . . . . 2 Crushed . | . . . . . . . . . . . Highest Temperature 313 | . 63 303 . . 279 313 84 168 190 149 Average Temperature 77 | . 17 162 . . 71 88 28 77 56 69 Received Heat Transfer 2328 | . 168 243 . . 963 360 171 . 207 216 Effects 3 | . . 3 . . . . . . . . Energy Bleed 1 | . . 1 . . . . . . . . Interference 2 | . . 2 . . . . . . . . Siege Activations . | . . . . . . . . . . . Robots Corrupted 4 | . . . . . . . . . 4 . Combat Hostiles 2 | . . . . . . . . . 2 . Parts Fried 7 | . . . . . . 1 . . 6 . Impact Corruptions 5 | . . . . . . 1 . . 4 . Robots Melted . | . . . . . . . . . . . Combat Hostiles . | . . . . . . . . . . . Parts Melted 3 | . . . . . 2 . . . 1 . Heat Transferred 5526 | . 222 185 . . 3306 1665 148 . . . Parts Sabotaged . | . . . . . . . . . . . Parts Stolen 1 | . . . . . . . . . . 1 Parts Stripped . | . . . . . . . . . . . Power Chain Reactions 1 | . . . . . 1 . . . . . Alert | -11 -10 -10 -10 -9 -8 -7 -6 -6 -6 -6 ------- Run | Yrd Mat Min Exi Min Mat Fac Fac Was Fac Low Peak Influence 838 | . 180 132 . 5 838 507 356 122 164 . Initial 336 | . . 27 . . . 336 186 118 59 . Average 266 | . 47 80 . . 416 379 272 115 64 . Maximum Alert Level 3 | . . . . . 3 2 1 . . . Low Security (%) 50 | 100 100 100 . 100 31 . 18 100 100 . Level 1 22 | . . . . . 16 64 81 . . . Level 2 18 | . . . . . 32 35 . . . . Level 3 8 | . . . . . 20 . . . . . Level 4 . | . . . . . . . . . . . Level 5 . | . . . . . . . . . . . High Security . | . . . . . . . . . . . Max Security . | . . . . . . . . . . . Squads Dispatched 24 | . 1 . . . 10 5 3 . 5 . Investigation 3 | . . . . . 2 1 . . . . Extermination 7 | . . . . . . 3 2 . 2 . Reinforcement 14 | . 1 . . . 8 1 1 . 3 . Assault . | . . . . . . . . . . . Garrison . | . . . . . . . . . . . Intercept . | . . . . . . . . . . . Searches Triggered . | . . . . . . . . . . . Construction Impeded 1 | . . . . . 1 . . . . . Haulers Reinforced 1 | . . . . . . . . . 1 . Active Scanning Responses . | . . . . . . . . . . . Cargo Convoy Interrupts . | . . . . . . . . . . . Stealth | -11 -10 -10 -10 -9 -8 -7 -6 -6 -6 -6 --------- Run | Yrd Mat Min Exi Min Mat Fac Fac Was Fac Low Distress Signals 6 | . 1 . . . 3 2 . . . . Communications Jammed 1 | . . . . . . 1 . . . . Distress Signals 1 | . . . . . . 1 . . . . Times Spotted 156 | . 22 4 . . 71 28 11 4 11 5 Peak Tracking Total 7 | . 4 2 . . 7 5 4 2 6 3 Tactical Retreats 15 | . 1 . . . 7 1 . 2 4 . Traps | -11 -10 -10 -10 -9 -8 -7 -6 -6 -6 -6 ------- Run | Yrd Mat Min Exi Min Mat Fac Fac Was Fac Low Traps Triggered 11 | . . . . . 2 3 5 . 1 . Indirectly 1 | . . . . . . 1 . . . . Trap Hack Attempts . | . . . . . . . . . . . Triggered . | . . . . . . . . . . . Disarmed . | . . . . . . . . . . . Reprogrammed . | . . . . . . . . . . . Reused 2 | . . . . . 2 . . . . . Traps Reconfigurated 15 | . . . . . 5 6 . . 4 . Traps Extracted . | . . . . . . . . . . . Installed 2 | . . . . . 2 . . . . . Triggered 2 | . . . . . 2 . . . . . Most Traps Carried 3 | . . . . 3 3 1 . . . . Objects Rigged 13 | . . . . . 11 2 . . . . Exploded 12 | . . . . . 10 2 . . . . Machines | -11 -10 -10 -10 -9 -8 -7 -6 -6 -6 -6 ---------- Run | Yrd Mat Min Exi Min Mat Fac Fac Was Fac Low Machines Disabled 15 | . . 1 . . 8 1 4 . 1 . Max in Single Turn 1 | . . 1 . . 1 1 1 . 1 . Machines Repaired . | . . . . . . . . . . . Machines Dismantled . | . . . . . . . . . . . Machines Sabotaged . | . . . . . . . . . . . Overloaded Fab Kills . | . . . . . . . . . . . Hacking | -11 -10 -10 -10 -9 -8 -7 -6 -6 -6 -6 --------- Run | Yrd Mat Min Exi Min Mat Fac Fac Was Fac Low Machines Accessed 18 | . 2 1 1 1 8 4 1 . . . Terminals 15 | . 2 . . 1 7 4 1 . . . Fabricators . | . . . . . . . . . . . Repair Stations 1 | . . . . . 1 . . . . . Recycling Units . | . . . . . . . . . . . Scanalyzers . | . . . . . . . . . . . Garrison Access . | . . . . . . . . . . . Total Hacks 43 | . 3 1 1 2 20 14 2 . . . Successful 25 | . 2 1 1 2 11 7 1 . . . Failed 18 | . 1 . . . 9 7 1 . . . Catastrophic 4 | . . . . . 2 2 . . . . Database Lockouts . | . . . . . . . . . . . Manual 13 | . 1 . 1 . 6 5 . . . . Terminals 39 | . 3 . . 2 18 14 2 . . . Fabricators . | . . . . . . . . . . . Repair Stations 2 | . . . . . 2 . . . . . Recycling Units . | . . . . . . . . . . . Scanalyzers . | . . . . . . . . . . . Garrison Access . | . . . . . . . . . . . Terminal Hacks 24 | . 2 1 1 2 10 7 1 . . . Record 3 | . . . . . 3 . . . . . Open Door 1 | . . 1 . . . . . . . . Emergency Access Points 1 | . . . . . . 1 . . . . Alert Level 7 | . 1 . . . 3 3 . . . . Unreport Threat 1 | . . . . . 1 . . . . . Dispatch Records 1 | . . . . 1 . . . . . . Reinforcement Status 1 | . . . . . 1 . . . . . Zone Layout 8 | . 1 . . 1 2 3 1 . . . Derelict Proto ID Bank 1 | . . . 1 . . . . . . . Fabricator Hacks . | . . . . . . . . . . . Repair Station Hacks 1 | . . . . . 1 . . . . . Scan Component 1 | . . . . . 1 . . . . . Recycling Unit Hacks . | . . . . . . . . . . . Scanalyzer . | . . . . . . . . . . . Garrison Access Hacks . | . . . . . . . . . . . Unauthorized Hacks . | . . . . . . . . . . . Terminals . | . . . . . . . . . . . Fabricators . | . . . . . . . . . . . Repair Stations . | . . . . . . . . . . . Recycling Units . | . . . . . . . . . . . Scanalyzers . | . . . . . . . . . . . Garrison Access . | . . . . . . . . . . . Data Cores Recovered 1 | . . . . . . 1 . . . . Used . | . . . . . . . . . . . Hacking Detections 15 | . 2 . . 1 8 3 1 . . . Full Trace Events 1 | . . . . . . 1 . . . . Feedback Events . | . . . . . . . . . . . Feedback Blocked . | . . . . . . . . . . . Robot Schematics Acquired . | . . . . . . . . . . . Robots Built . | . . . . . . . . . . . Authchips . | . . . . . . . . . . . Time . | . . . . . . . . . . . Total Robot Build Rating . | . . . . . . . . . . . Part Schematics Acquired . | . . . . . . . . . . . Parts Built . | . . . . . . . . . . . Authchips . | . . . . . . . . . . . Time . | . . . . . . . . . . . Total Part Build Rating . | . . . . . . . . . . . Parts Repaired . | . . . . . . . . . . . Time . | . . . . . . . . . . . Parts Recycled . | . . . . . . . . . . . Recycled Matter . | . . . . . . . . . . . Retrieved Matter . | . . . . . . . . . . . Retrieved Components . | . . . . . . . . . . . Parts Scanalyzed . | . . . . . . . . . . . Part Schematics Acquired . | . . . . . . . . . . . Parts Damaged . | . . . . . . . . . . . Bothacking | -11 -10 -10 -10 -9 -8 -7 -6 -6 -6 -6 ------------ Run | Yrd Mat Min Exi Min Mat Fac Fac Was Fac Low Used RIF Installer . | . . . . . . . . . . . Robots Hacked . | . . . . . . . . . . . Non-combat . | . . . . . . . . . . . Combat . | . . . . . . . . . . . Robot Hacks Applied . | . . . . . . . . . . . Relay Couplers Released 3 | . . . . . . 3 . . . . Programmers 3 | . . . . . . 3 . . . . Fabnet Peak Effective % . | . . . . . . . . . . . Robots Rewired . | . . . . . . . . . . . Allies Hacked . | . . . . . . . . . . . Hacks Repelled . | . . . . . . . . . . . Allies | -11 -10 -10 -10 -9 -8 -7 -6 -6 -6 -6 -------- Run | Yrd Mat Min Exi Min Mat Fac Fac Was Fac Low Total Allies 2 | . . . . 2 . . . . . . Largest Group 2 | . . . . 2 1 . . . . . Highest-Rated Group 53 | . . . . 53 31 . . . . . Highest-Rated Ally 31 | . . . . 31 31 . . . . . Total Orders . | . . . . . . . . . . . Ally Attacks 16 | . . . . . 16 . . . . . Total Damage 211 | . . . . . 211 . . . . . Kills 2 | . . . . . 2 . . . . . Allies Corrupted . | . . . . . . . . . . . Allies Melted . | . . . . . . . . . . . Intel | -11 -10 -10 -10 -9 -8 -7 -6 -6 -6 -6 ------- Run | Yrd Mat Min Exi Min Mat Fac Fac Was Fac Low Robot Analysis Total . | . . . . . . . . . . . Derelict Logs Recovered 3 | . . 3 . . . . . . . . Drone Launches . | . . . . . . . . . . . Drone Recoveries . | . . . . . . . . . . . Exploration | -11 -10 -10 -10 -9 -8 -7 -6 -6 -6 -6 ------------- Run | Yrd Mat Min Exi Min Mat Fac Fac Was Fac Low Turns Passed 10866 | 79 1003 651 482 854 3964 1642 733 220 827 411 Spaces Moved 4604 | 46 440 292 247 305 1536 851 366 108 294 119 Core 7 | 6 . . . . 1 . . . . . Treads 1102 | 40 333 . . . 361 368 . . . . Legs 2481 | . 107 292 247 305 1174 . . . 237 119 Wheels 1014 | . . . . . . 483 366 108 57 . Hover . | . . . . . . . . . . . Flight . | . . . . . . . . . . . Fastest Speed 50 | 50 160 125 195 195 120 115 115 115 145 330 Average Speed 174 | 145 167 185 195 195 173 148 129 123 226 331 Slowest Speed 750 | 160 190 195 195 195 750 305 130 145 330 540 Overloaded Moves . | . . . . . . . . . . . Propulsion Burnouts . | . . . . . . . . . . . Robots Hopped . | . . . . . . . . . . . Cave-ins Triggered 2 | . . . . . . . . 2 . . Exploration Rate (%) 43 | 4 79 57 62 53 73 23 11 89 7 19 Regions Visited 10 Branch Regions 4 Pre-discovered Areas . | . . . . . . . . . . . Known Exits Taken . | . . . . . . . . . . . Unknown Exits Taken 8 | 1 1 1 1 1 1 1 . . 1 . Scrap Searched 1 | . . 1 . . . . . . . . Spaces Dug 68 | . . . . 6 24 3 12 20 3 . Terrain Destroyed 177 | . . . . 6 111 10 23 20 7 . Melee 30 | . . . . . 1 3 3 20 3 . Projectile 78 | . . . . 6 41 7 20 . 4 . AOE 69 | . . . . . 69 . . . . . Terrain Rammed . | . . . . . . . . . . . Walls Destroyed . | . . . . . . . . . . . Machines Disabled . | . . . . . . . . . . . Actions | -11 -10 -10 -10 -9 -8 -7 -6 -6 -6 -6 --------- Run | Yrd Mat Min Exi Min Mat Fac Fac Was Fac Low Total 6716 | 58 613 369 248 546 2522 1120 559 162 397 122 Wait 1238 | . 85 36 . 230 625 89 129 31 13 . Move 4595 | 45 439 291 246 304 1535 850 366 107 293 119 Hop . | . . . . . . . . . . . Pick Up 145 | 8 17 7 2 1 61 29 8 . 12 . Fast Attach 7 | . . . . . 5 . 2 . . . Attach 97 | 5 5 2 . 1 32 20 6 1 25 . Detach 25 | . 2 1 . . 6 8 3 . 5 . Swap 74 | . 5 6 . 3 45 11 2 2 . . Drop 83 | . 7 5 . 1 39 23 6 . 2 . Fire 377 | . 53 21 . 6 160 76 34 . 27 . Melee 49 | . . . . . 1 4 3 21 20 . Ram 1 | . . . . . . . . . . 1 Kick 2 | . . . . . . . . . . 2 Crush . | . . . . . . . . . . . Escape Stasis 8 | . . . . . . 8 . . . . Rewire . | . . . . . . . . . . . Trap 15 | . . . . . 13 2 . . . . Miscellaneous . | . . . . . . . . . . . Route ------- -11/Scrapyard -10/Materials (discovered 4 exits: [*Mat x3] / *Min) -10/Mines (discovered 3 exits: [*Mat x2] / *Exi) -10/Exiles -9/Mines (discovered 2 exits: *Mat x2) -8/Materials (discovered 3 exits: *Fac x3) -7/Factory -6/Factory -6/Waste -6/Factory -6/Lower Caves History --------- Turn | Location | Event 35 | -11/Scrapyard | Discovered new exit (range 15) 80 | -11/Scrapyard | Entered Materials 309 | -10/Materials | Build established: Mutant 339 | -10/Materials | Discovered new exit (range 3) 617 | -10/Materials | Discovered new exit (range 8) 958 | -10/Materials | Discovered new exit (range 10) 985 | -10/Materials | Discovered new exit (range 16) 1083 | -10/Materials | Entered Mines 1127 | -10/Mines | Learned Materials terminal intel 1185 | -10/Mines | Met a Derelict who couldn't figure out how to use a Trap Extractor 1425 | -10/Mines | Learned 2 Materials zone layouts 1457 | -10/Mines | Core integrity fell below 50% 1512 | -10/Mines | Learned Materials stockpile data 1515 | -10/Mines | Discovered new exit (range 8) 1597 | -10/Mines | Discovered new exit (range 7) 1726 | -10/Mines | Deemed a non-threat by the Exiles lab entrance 1726 | -10/Mines | Discovered new exit (range 5) 1734 | -10/Mines | Entered Exiles 1789 | -10/Exiles | Met 8R-AWN 1824 | -10/Exiles | Met EX-HEX 1883 | -10/Exiles | Met EX-BIN 1910 | -10/Exiles | Aligned with FarCom system 1912 | -10/Exiles | Given EX-Vault access code 1961 | -10/Exiles | Opened EX-Vault 1974 | -10/Exiles | Found Trap Reconfigurator 1983 | -10/Exiles | Found PSU Rigger 2025 | -10/Exiles | Warned to stay clear of 0b10 Research branches 2082 | -10/Exiles | Met EX-DEC 2189 | -10/Exiles | Discovered new exit (range 14) 2216 | -10/Exiles | Stole two prototypes: Trap Reconfigurator, PSU Rigger 2216 | -10/Exiles | Entered Mines 2908 | -9/Mines | Discovered new exit (range 8) 2918 | -9/Mines | Found a hidden stash of uninstalled traps 2945 | -9/Mines | Discovered new exit (range 15) 3070 | -9/Mines | Entered Materials 3070 | -8/Materials | Accompanied by 1 ally 3070 | -8/Materials | Evolved 4 slots: Propulsion x1, Utility x3 3073 | -8/Materials | Loaded intel: 12 terminal locations 3075 | -8/Materials | Led the pair of lost Derelicts to an unsafe place 3437 | -8/Materials | Discovered new exit (range 16) 3805 | -8/Materials | Discovered new exit (range 3) 4523 | -8/Materials | Discovered new exit (range 14) 4640 | -8/Materials | Lost 3 parts (1n1u1w) 4645 | -8/Materials | Build established: Scavenger-Mutant 4684 | -8/Materials | Lost 3 parts (1p1n1w) 6127 | -8/Materials | Core integrity fell below 50% 7034 | -8/Materials | Entered Factory 7034 | -7/Factory | Evolved 2 slots: Propulsion x1, Utility x1 7036 | -7/Factory | FarCom data flow suspended 7503 | -7/Factory | Build established: Mutant 7713 | -7/Factory | Discovered new exit (range 16) 7801 | -7/Factory | Lost 4 parts (3n1w) 7908 | -7/Factory | Build established: Scavenger-Mutant 8676 | -7/Factory | Entered another Factory area 8676 | -6/Factory | Evolved 2 slots: Power x1, Utility x1 9409 | -6/Factory | Sucked down chute 9409 | -6/Factory | Entered Waste 9420 | -6/Waste | Spotted C-40 Crusher 9424 | -6/Waste | EMP discharged 9424 | -6/Waste | System corruption reached 10% 9481 | -6/Waste | Spotted C-40 Crusher 9481 | -6/Waste | Spotted C-40 Crusher 9495 | -6/Waste | Crushed by Compactor (0 parts destroyed, 1 dropped) 9506 | -6/Waste | Crushed by Compactor (0 parts destroyed, 2 dropped) 9507 | -6/Waste | Spotted C-40 Crusher 9512 | -6/Waste | Crushed by Compactor (0 parts destroyed, 1 dropped) 9524 | -6/Waste | EMP discharged 9544 | -6/Waste | Spotted C-40 Crusher 9571 | -6/Waste | Crushed by falling debris 9616 | -6/Waste | Discovered new exit (range 10) 9619 | -6/Waste | Crushed by falling debris 9619 | -6/Waste | System corruption reached 30% 9624 | -6/Waste | EMP discharged 9629 | -6/Waste | Entered Factory 9650 | -6/Factory | Lost 3 parts (1n2u) 10063 | -6/Factory | Core integrity fell below 50% 10112 | -6/Factory | Discovered new exit (range 16) 10120 | -6/Factory | Lost 9 parts (2p3n1u3w) 10456 | -6/Factory | Entered Lower Caves 10456 | -6/Lower Caves | Spotted 9N-HG4(f) 10456 | -6/Lower Caves | Spotted 3O-PL4(f) 10458 | -6/Lower Caves | Encountered a Master Thief 10458 | -6/Lower Caves | Encountered a Master Thief 10466 | -6/Lower Caves | Build established: Mutant 10467 | -6/Lower Caves | Trap Reconfigurator stolen by Master Thief 10861 | -6/Lower Caves | Core integrity fell below 20% 10867 | -6/Lower Caves | Destroyed by L-41 Fighter with Axe Last Messages --------------- 10689_ System corrupted: Heat flow error (+196). 10722_ System corrupted: Component data lost. 10740_ NWXJYTV3Q3ADBWFQ/&V1R L471GSA 10755_ >URD,/EIIO=R%MUWZFRL2LAIV:O&ZF3 10773_ OQKKWL6GK2N4TGBNTDCQMCJ/WKEUP&RYWOJ 10804_ YC/NUO&&I5F6ZRL9 OABEJQ|WL 10820_ B7:#MMS>0I0PL>UP::%V1UOQE8 7TOB 10835_ System corrupted: Energy discharge (-81). 10841_ Antimatter Cannon severed. 10848_ Arm. Leg severed. 10851_ Adv. Heat Sink destroyed. 10851_ Critical hit (Burn: +37). 10852_ System corrupted: Matter fused (-5). 10853_ Imp. Light Armor Plating destroyed. 10855_ Kicked L-41 Fighter. 10857_ Critical hit (Burn: +37). 10858_ Arm. Leg severed. 10859_ Slammed into L-41 Fighter. 10861_ Critical hit (Burn: +37). 10864_ Imp. Deuterium Engine destroyed. Map ----- +----------------------------------------------------+ | ?????????????????????????????????????????????????? | | ?????????????????????????????????????????????????? | | ?????????????????????????????????????????????????? | | ?????????????????????????????????????????????????? | | ?????????????????????????????????????????????????? | | ?????????????????????????????????????????????????? | | ?????????????????????????????????????????????????? | | ?????????????????????????????????????????????????? | | ?????????????????????????????????????????????????? | | ?????????????????????????????????????????????????? | | ??????????????? ?????????????????????????????????? | | ????????????? ????????????? ?????????????????? | | ???????????? #????????#??? #????????????????? | | ???????????? #??????? ### #???????????????? | | ????????????# ####??? #????????????????? | | ????????????# #??? ?????????????????? | | ???????????? #???# #?????????????????? | | ?????????????# ##??# ##????????????????? | | ?????????????# #### ##???????????????? | | ?????????????# ## #??????????????## | | ?????????????? ## #?????????????## | | ???????????????# #?????????????# | | ??????????????## #?####????????# | | ?????????????## ### #???????## | | ????????????## g g ## #???????# | | ????????????# ] l@ ## #??????????? | | ???????????# ##### ## ## #?###??????? | | ???????????# #???####### ## ### ##?????? | | ???????????## #?????????# ## #????## | | ????????????#### #?????????# #??### | | ???????????????# #?????????# S #?## | | ???????????????# ?????????# ## ### | | ???????????????# ?????????## ##### ## | | ???????????????## ??????????## ##???##### | | ????????????????? ???????????####????????## | | ????????????????? ????????????????????????## # | | ????????????????? ?????????????????????????# ## | | ????????????????? ?????????????????????????# ##? | | ????????????????? ?????????????????????????# #?? | | ????????????????? ?????????????????????????# #?? | | ????????????????? ?????????????????????????# ?? | | ????????????????????????????????????????????# ?? | | ???????????????????????????????????????????? ? | | ???????????????????????????????????????????? ? | | ??????????????????????????????????????????? ? | | ??????????????????????????????????????????? | | ?????????????????????????????????????????? | | ??????????????????????????????????????????? | | ???????????????????????????????????????????## | | ?????????????????????????????????????????????# ?? | +----------------------------------------------------+ Best States ------------- Heat Dissipation 64 Coolant Potential 65 Energy Generation 26 Energy Capacity 340 Matter Stores 300 Matter Capacity 300 Sight Range 16 Robot Scan Range 16 Terrain Scan Density 10 ECM Strength 2 Jamming Range 12 Additional Mass Support 6 Armor Coverage 375 Resistance: EM 15 Weapon Cycling 15 Evasion (%) 55 Targeting Accuracy 8 Launcher Accuracy 20 Target Analysis 6 Core Analysis 6 Armor Integrity Analysis 30 Recoil Reduction 4 Trap Extractor Capacity 6 Item Schematics ----------------- None Robot Schematics ------------------ None Fabricated ------------ Nothing Alien Tech Used ----------------- None Achievements -------------- None Challenges ------------ None Game ------ Seed ShadeSeismicAmplifier Manual? 0 Play Time 02:49:17 Cumulative 40.2 hours Start 2024.08.07 @ 22:38:31 End 2024.08.13 @ 01:21:46 Sessions 3 Manual Loads 0 Difficulty Rogue Special Mode None Game No. 57 Rogue 57 Adventurer 0 Explorer 0 Win Type - Total 0 Types 0/0/0/0/0/0/0/0/0 Lore% 12 Gallery% 27 Achievement% 24 Wizard Run 0 Options --------- Layout 1 ASCII 0 Keyboard 0 Movement Mouse Keybinds 0 Fullscreen 1 Font 16/SmallcapsGlow Map View 50x40 Zoom Use 0% Tactical HUD 1 Map Filters NONE Filters NONE Steam SD RUN: b70715aa-6138-4360-8e96-07d749f60bea